bitfinex-derivatives/quotes_SOLF0:USTF0_20241208
["timestamp","ask_amount","ask_price","bid_price","bid_amount"]
[1733638241832,2.1101,236.77,236.73,6.56119101]
[1733638244232,1.92,236.8,236.73,6.56119101]
[1733638244433,1.92,236.83,236.77,2.1101]
[1733638244636,6.56119101,236.82,236.75,6.56119101]
[1733638245332,2.1099,236.8,236.76,2.1102]
[1733638246032,6.56119101,236.82,236.77,2.1101]
[1733638246033,8.67099101,236.82,236.77,2.1101]
[1733638246231,1.92,236.83,236.77,6.56119101]
[1733638246428,6.56119101,236.82,236.74,1.9]
[1733638246636,6.56119101,236.82,236.74,8.46119101]
[1733638246935,1.92,236.83,236.75,2.1103]
[1733638246936,2.1099,236.79,236.75,2.1103]
[1733638247135,6.56119101,236.8,236.74,1.9]
[1733638247935,1.92,236.83,236.75,6.56119101]
[1733638248136,8.48119101,236.83,236.74,1.9]
[1733638248336,8.48119101,236.83,236.74,8.46119101]
[1733638248337,6.56119101,236.81,236.74,8.46119101]
[1733638248828,8.48119101,236.83,236.76,6.56119101]
[1733638249734,3.9688,236.89,236.78,2.11]
[1733638249735,2.1097,236.82,236.78,2.11]
[1733638250136,6.56119101,236.83,236.76,6.56119101]
[1733638250435,8.67079101,236.83,236.79,2.1099]
[1733638251139,6.56119101,236.83,236.79,2.1099]
[1733638251643,3.9688,236.89,236.8,6.56119101]
[1733638251644,2.1092,236.88,236.8,6.56119101]
[1733638251835,6.56119101,236.88,236.8,6.56119101]
[1733638252235,5.3424,236.89,236.84,2.1094]
[1733638252436,5.3424,236.89,236.8,6.56119101]
[1733638252437,6.56119101,236.88,236.8,6.56119101]
[1733638252729,6.56119101,236.88,236.82,6.56119101]
[1733638252934,6.56119101,236.88,236.86,2.1093]
[1733638253341,1.9,236.9,236.87,2.1092]
[1733638254539,6.56119101,236.89,236.85,2.1093]
[1733638255236,6.56119101,236.89,236.86,2.1093]
[1733638255740,6.56119101,236.88,236.79,1.9]
[1733638255939,6.56119101,236.88,236.81,6.56119101]
[1733638256345,6.56119101,236.88,236.84,2.1094]
[1733638256638,6.56119101,236.86,236.72,3.66755169]
[1733638256841,8.67049101,236.86,236.81,2.1097]
[1733638257036,6.56119101,236.86,236.81,2.1097]
[1733638257231,6.56119101,236.84,236.73,1.9]
[1733638257534,6.56119101,236.84,236.8,2.1098]
[1733638258339,6.56119101,236.84,236.81,2.1098]
[1733638258533,1.2819,236.89,236.79,6.56119101]
[1733638258739,1.2819,236.89,236.57,5.83812566]
[1733638258740,6.56119101,236.88,236.81,6.56119101]
[1733638259841,6.56119101,236.87,236.84,2.1094]
[1733638260245,3.1819,236.89,236.84,2.1094]
[1733638260538,6.56119101,236.87,236.81,2.1097]
[1733638260740,6.56119101,236.87,236.79,6.56119101]
[1733638261243,2.1091,236.88,236.84,2.1095]
[1733638261441,8.67049101,236.87,236.78,1.9]
[1733638261641,3.1819,236.89,236.8,6.56119101]
[1733638261838,6.56119101,236.88,236.8,6.56119101]
[1733638262039,1.9,236.89,236.82,6.56119101]
[1733638262737,1.9,236.89,236.86,2.1093]
[1733638263344,4.0091,236.89,236.84,2.1094]
[1733638263843,4.0091,236.89,236.79,1.2947]
[1733638264047,4.0091,236.89,236.85,2.1094]
[1733638264742,4.0091,236.89,236.84,2.1094]
[1733638264939,10.57029101,236.89,236.84,2.1094]
[1733638265945,2.1094,236.86,236.81,2.1097]
[1733638266335,6.56119101,236.85,236.72,1.3414]
[1733638266540,6.56119101,236.83,236.75,6.56119101]
[1733638266735,6.56119101,236.84,236.75,6.56119101]
[1733638266942,3.9417,236.88,236.75,6.56119101]
[1733638267140,6.56119101,236.84,236.77,2.11]
[1733638267341,8.46119101,236.84,236.77,2.11]
[1733638267540,8.46119101,236.84,236.73,1.9]
[1733638267741,2.1098,236.81,236.75,2.1103]
[1733638268146,1.9,236.84,236.75,6.56119101]
[1733638268438,8.46119101,236.84,236.76,8.67129101]
[1733638268643,8.46119101,236.84,236.76,2.1101]
[1733638268841,8.46119101,236.84,236.72,3.2414]
[1733638268842,2.1098,236.81,236.75,8.67149101]
[1733638269545,6.56119101,236.82,236.72,3.2414]
[1733638269744,2.11,236.79,236.74,6.56119101]
[1733638269944,2.11,236.79,236.72,1.3414]
[1733638270145,2.11,236.79,236.75,6.56119101]
[1733638272443,3.9417,236.88,236.78,2.11]
[1733638272444,1.9,236.83,236.78,2.11]
[1733638272846,3.9417,236.88,236.81,6.56119101]
[1733638273046,1.9,236.87,236.81,6.56119101]
[1733638273442,2.1092,236.87,236.82,2.1096]
[1733638273843,1.9,236.89,236.83,6.56119101]
[1733638274650,4.0091,236.89,236.84,2.1095]
[1733638275055,1.9,236.89,236.83,6.56119101]
[1733638275248,1.9,236.89,236.85,2.1094]
[1733638276356,4.0091,236.89,236.84,2.1095]
[1733638277769,10.57029101,236.89,236.84,2.1095]
[1733638278960,4.0091,236.89,236.84,2.1095]
[1733638281755,2.5579,236.97,236.83,6.56119101]
[1733638281958,2.5579,236.97,236.81,1.96]
[1733638281959,2.1086,236.94,236.87,6.56119101]
[1733638282460,4.6662,236.97,236.93,2.1087]
[1733638282654,6.56119101,236.97,236.91,6.56119101]
[1733638283362,6.56119101,236.98,236.91,6.56119101]
[1733638283665,8.66949101,236.98,236.93,2.1087]
[1733638283958,6.56119101,236.98,236.91,6.56119101]
[1733638284165,1.96,237.03,236.95,6.56119101]
[1733638284360,6.56119101,237.03,236.97,2.1083]
[1733638285566,2.1079,237.02,236.97,2.1083]
[1733638286456,2.108,237.01,236.95,6.56119101]
[1733638286656,6.56119101,237.03,236.95,6.56119101]
[1733638287566,1.96,237.06,236.97,6.56119101]
[1733638287759,8.52119101,237.06,236.97,6.56119101]
[1733638288067,3.9371,237.08,237.01,2.1079]
[1733638288068,2.1075,237.07,237.01,2.1079]
[1733638288465,2.1075,237.07,236.99,6.56119101]
[1733638288660,82.14912167,237.13,237.03,6.56119101]
[1733638288863,82.14912167,237.13,236.92,3.9898]
[1733638288864,90.67031268,237.13,237.05,6.56119101]
[1733638289161,6.56119101,237.09,237.03,1.96]
[1733638289357,6.56119101,237.09,237.01,6.56119101]
[1733638289358,6.56119101,237.09,237.01,8.52119101]
[1733638289557,6.56119101,237.07,237.01,8.52119101]
[1733638289764,6.56119101,237.09,237.01,10.62909101]
[1733638290163,6.56119101,237.09,237.01,8.52119101]
[1733638290358,8.66849101,237.09,237.03,8.66899101]
[1733638290859,6.56119101,237.11,237.05,6.56119101]
[1733638291061,88.71031268,237.13,237.05,6.56119101]
[1733638291464,88.71031268,237.13,237.06,2.1075]
[1733638292373,2.107,237.12,237.07,8.66859101]
[1733638294164,8.66849101,237.09,237.03,2.1077]
[1733638294468,6.56119101,237.09,237.0,8.52119101]
[1733638294966,1.96,237.1,236.97,6.56119101]
[1733638294967,6.56119101,237.05,236.97,6.56119101]
[1733638295358,6.56119101,237.05,236.95,6.56119101]
[1733638295359,6.56119101,237.03,236.95,6.56119101]
[1733638295866,6.56119101,237.03,236.97,2.1083]
[1733638296069,6.56119101,237.03,236.97,8.66949101]
[1733638296571,1.96,237.05,237.0,2.1081]
[1733638296864,6.56119101,237.07,237.0,2.1081]
[1733638297665,6.56119101,237.05,236.99,6.56119101]
[1733638297867,6.56119101,237.03,236.97,6.56119101]
[1733638298063,2.1079,237.02,236.95,6.56119101]
[1733638298474,1.96,237.09,237.01,6.56119101]
[1733638298671,6.56119101,237.08,237.01,6.56119101]
[1733638298861,6.56119101,237.06,236.99,6.56119101]
[1733638299167,2.1076,237.05,237.0,2.108]
[1733638299469,2.1076,237.05,236.94,1.96]
[1733638299781,1.96,237.09,236.99,6.56119101]
[1733638299973,2.1076,237.06,236.99,6.56119101]
[1733638300269,6.56119101,237.07,237.0,2.1081]
[1733638300471,6.56119101,237.07,236.99,6.56119101]
[1733638300769,6.56119101,237.05,236.99,6.56119101]
[1733638301070,2.1078,237.03,236.99,6.56119101]
[1733638302262,2.1075,237.07,237.01,6.56119101]
[1733638303671,6.56119101,237.03,236.85,1.05460286]
[1733638303873,1.96,237.09,236.84,53.71787492]
[1733638303874,6.56119101,236.95,236.87,6.56119101]
[1733638304168,6.56119101,236.95,236.88,2.1091]
[1733638304363,6.56119101,236.95,236.84,56.95887492]
[1733638304570,2.1087,236.93,236.86,6.56119101]
[1733638305565,2.1087,236.93,236.87,2.1092]
[1733638305875,8.66979101,236.95,236.88,6.56119101]
[1733638306073,2.1086,236.95,236.88,6.56119101]
[1733638306373,2.1082,236.99,236.94,6.56119101]
[1733638306572,2.1082,236.99,236.93,2.1086]
[1733638306777,1.98,237.01,236.89,1.98]
[1733638308677,10.2560705,236.99,236.86,12.2360705]
[1733638309268,10.2560705,236.99,236.86,1.98]
[1733638310178,10.2560705,236.98,236.86,1.98]
[1733638310673,2.1087,236.93,236.87,2.1091]
[1733638310976,1.98,236.96,236.87,2.1091]
[1733638311180,2.109,236.9,236.85,2.1093]
[1733638311876,11.5456705,236.95,236.84,55.82737492]
[1733638312870,11.5456705,236.95,236.85,2.1094]
[1733638313375,11.5456705,236.95,236.84,53.71787492]
[1733638313581,2.1089,236.91,236.86,2.1093]
[1733638313878,2.1089,236.91,236.84,53.71787492]
[1733638314082,2.1089,236.91,236.87,2.1092]
[1733638314377,2.1087,236.93,236.84,53.71787492]
[1733638314579,1.2896,236.95,236.84,53.71787492]
[1733638314879,3.2696,236.95,236.84,53.71787492]
[1733638315075,2.1088,236.92,236.84,53.71787492]
[1733638315872,13.5256705,236.95,236.76,1.05506373]
[1733638316074,13.5256705,236.95,236.51,23.222]
[1733638316075,13.5256705,236.95,236.79,3.3358]
[1733638316776,13.5256705,236.95,236.8,1.98]
[1733638316980,13.5256705,236.95,236.81,10.2560705]
[1733638318182,2.109,236.9,236.85,2.1094]
[1733638318383,2.109,236.9,236.81,10.2560705]
[1733638318681,13.5256705,236.95,236.8,1.98]
[1733638318878,13.5256705,236.95,236.8,12.2360705]
[1733638319585,2.1091,236.89,236.84,2.1094]
[1733638320189,13.5256705,236.95,236.84,2.1094]
[1733638320485,2.1092,236.88,236.84,2.1094]
[1733638320680,10.2560705,236.92,236.8,1.98]
[1733638320882,2.1093,236.86,236.8,1.98]
[1733638321580,1.98,236.89,236.8,2.1098]
[1733638321974,2.1092,236.87,236.78,1.98]
[1733638322179,1.98,236.89,236.78,1.98]
[1733638322776,4.0891,236.89,236.83,2.1095]
[1733638323794,2.1092,236.87,236.83,2.1095]
[1733638323983,1.98,236.89,236.83,2.1095]
[1733638324385,1.98,236.95,236.85,10.2560705]
[1733638325593,4.0885,236.95,236.9,2.109]
[1733638325787,4.0885,236.95,236.85,10.2560705]
[1733638327288,2.1084,236.96,236.91,2.1089]
[1733638327991,2.1084,236.96,236.92,2.1088]
[1733638328189,1.98,236.98,236.92,2.1088]
[1733638328387,2.1083,236.97,236.92,2.1088]
[1733638328592,2.1083,236.97,236.84,1.3428]
[1733638328593,1.98,236.98,236.88,10.2560705]
[1733638328989,1.98,236.98,236.88,12.2360705]
[1733638329191,1.98,237.0,236.88,12.2360705]
[1733638329493,12.9052705,237.03,236.88,12.2360705]
[1733638329689,4.75863762,237.03,236.91,10.2560705]
[1733638329997,6.86643762,237.03,236.98,2.1082]
[1733638330189,4.75863762,237.03,236.98,2.1082]
[1733638330587,2.10943762,237.03,236.99,2.1081]
[1733638331086,2.10943762,237.03,236.97,2.1083]
[1733638331593,2.1079,237.02,236.94,1.98]
[1733638331789,12.36550812,237.03,236.94,1.98]
[1733638332292,12.36550812,237.03,236.9,1.98]
[1733638332994,2.1082,236.99,236.9,1.98]
[1733638334094,1.98,236.99,236.9,1.98]
[1733638334688,1.98,236.99,236.92,2.1088]
[1733638334689,2.1085,236.96,236.92,2.1088]
[1733638334892,1.98,236.99,236.92,2.1088]
[1733638335091,1.98,236.99,236.9,1.98]
[1733638335288,2.1083,236.98,236.93,2.1086]
[1733638335691,12.36550812,237.03,236.9,1.98]
[1733638335899,14.36550812,237.03,236.9,1.98]
[1733638336696,2.1082,236.99,236.9,1.98]
[1733638336896,14.36550812,237.03,236.9,1.98]
[1733638337291,2.1082,236.99,236.94,2.1086]
[1733638337895,2.1083,236.98,236.93,2.1087]
[1733638341408,2.1083,236.97,236.93,2.1087]
[1733638341706,14.36550812,237.03,236.85,11.5836705]
[1733638341707,10.2560705,237.0,236.85,11.5836705]
[1733638341901,10.2560705,237.0,236.87,2.0]
[1733638342405,10.2560705,237.0,236.88,2.1091]
[1733638342604,10.2560705,236.97,236.88,2.1091]
[1733638342808,12.2560705,236.97,236.88,2.1091]
[1733638343408,2.0,236.97,236.87,2.0]
[1733638344507,4.1084,236.97,236.92,2.1088]
[1733638344808,2.0,236.97,236.87,2.0]
[1733638345109,2.0,236.97,236.91,2.1088]
[1733638345110,2.1085,236.96,236.91,2.1088]
[1733638345311,2.1085,236.96,236.87,2.0]
[1733638345809,4.1083,236.97,236.92,2.1088]
[1733638346008,4.1083,236.97,236.87,2.0]
[1733638346210,2.0,236.97,236.87,2.0]
[1733638346408,12.36550812,237.03,236.88,10.2560705]
[1733638346607,2.0,237.02,236.88,10.2560705]
[1733638346811,2.0,237.02,236.89,1.332]
[1733638347411,2.0,237.02,236.91,10.2560705]
[1733638347722,2.0,237.02,236.92,2.0]
[1733638348012,4.1079,237.02,236.92,2.0]
[1733638348515,4.1079,237.02,236.97,2.1083]
[1733638348712,2.10943762,237.03,236.93,10.2560705]
[1733638349107,2.10943762,237.03,236.99,2.1082]
[1733638350218,2.10943762,237.03,236.97,2.0]
[1733638351314,2.10943762,237.03,236.99,2.1081]
[1733638352315,2.10943762,237.03,237.0,2.108]
[1733638352517,8.66896656,237.05,237.0,2.108]
[1733638352810,4.2116,237.26,237.05,2.1076]
[1733638353019,6.56126656,237.11,237.02,6.56126656]
[1733638353319,6.56126656,237.11,237.02,8.56126656]
[1733638353722,8.66846656,237.11,237.02,8.56126656]
[1733638354317,8.66846656,237.11,237.05,2.1076]
[1733638354515,2.1072,237.11,237.05,2.1076]
[1733638356024,2.1072,237.11,237.02,2.0]
[1733638356025,2.1072,237.11,237.06,2.1075]
[1733638356426,2.107,237.12,237.07,2.1074]
[1733638356622,12.24751337,237.17,237.03,10.24751337]
[1733638357019,12.24751337,237.17,237.08,2.1073]
[1733638357020,2.1069,237.13,237.08,2.1073]
[1733638357728,2.0,237.19,237.11,2.1071]
[1733638358624,2.10810355,237.18,237.11,2.1071]
[1733638358826,4.21470355,237.18,237.07,12.24751337]
[1733638360325,2.10810355,237.18,237.07,12.24751337]
[1733638360725,2.10810355,237.18,237.08,1.2806]
[1733638360930,2.10810355,237.18,237.13,2.1068]
[1733638361631,4.21460355,237.18,237.13,2.1068]
[1733638362326,2.10810355,237.18,237.11,2.1071]
[1733638363032,2.1067,237.16,237.11,2.1071]
[1733638363231,2.10810355,237.18,237.08,1.2806]
[1733638363429,2.10810355,237.18,237.12,2.107]
[1733638363837,2.1066,237.17,237.12,2.107]
[1733638364734,2.0,237.21,237.1,2.1071]
[1733638365029,10.24751337,237.19,237.1,2.1071]
[1733638365423,2.1072,237.11,237.02,2.0]
[1733638365625,10.24751337,237.14,237.03,2.0]
[1733638365933,10.24751337,237.14,237.02,2.0]
[1733638366135,2.1072,237.1,237.05,2.1076]
[1733638367930,2.1071,237.11,237.06,2.1075]
[1733638368432,2.1074,237.08,237.03,2.1078]
[1733638368635,10.24751337,237.14,237.01,2.0]
[1733638368636,11.62981337,237.14,237.01,2.0]
[1733638368834,14.24851337,237.14,237.01,2.0]
[1733638369237,2.1072,237.11,237.02,2.1079]
[1733638369534,14.24851337,237.14,237.02,2.1079]
[1733638369733,14.24851337,237.14,236.96,2.6753]
[1733638369734,10.24751337,237.08,236.96,2.6753]
[1733638369935,12.24751337,237.08,236.96,3.3956]
[1733638370536,2.1078,237.04,236.98,2.1082]
[1733638373847,2.1078,237.03,236.98,2.1082]
[1733638374136,12.24751337,237.08,236.98,2.1082]
[1733638375143,2.1078,237.03,236.98,2.1082]
[1733638375545,2.1078,237.03,236.95,2.0]
[1733638375546,2.108,237.01,236.97,2.1083]
[1733638375742,12.24751337,237.08,236.95,2.0]
[1733638375934,10.24751337,237.05,236.95,2.0]
[1733638376140,10.24751337,237.05,236.87,1.3592]
[1733638376141,2.1083,236.98,236.92,2.0]
[1733638376536,2.1083,236.98,236.92,8.56459213]
[1733638376937,6.56459213,237.0,236.91,6.56459213]
[1733638376938,2.1085,236.96,236.91,6.56459213]
[1733638377143,6.56459213,237.0,236.91,6.56459213]
[1733638377343,6.56459213,237.0,236.91,8.67339213]
[1733638377540,2.1085,236.96,236.91,8.67339213]
[1733638377944,2.0,237.03,236.91,6.56459213]
[1733638377945,6.56459213,236.98,236.91,6.56459213]
[1733638378247,6.56459213,236.98,236.89,10.67359213]
[1733638378446,6.56459213,236.96,236.89,6.56459213]
[1733638379240,2.1087,236.93,236.89,6.56459213]
[1733638380543,2.1088,236.93,236.89,6.56459213]
[1733638381042,6.56459213,236.96,236.89,6.56459213]
[1733638381846,2.1087,236.93,236.89,6.56459213]
[1733638383441,2.1088,236.92,236.87,6.56459213]
[1733638383649,6.56459213,236.94,236.87,6.56459213]
[1733638383850,2.0,236.98,236.89,6.56459213]
[1733638384051,6.56459213,236.96,236.89,6.56459213]
[1733638384952,2.1086,236.94,236.89,6.56459213]
[1733638386548,2.1081,237.0,236.91,6.56459213]
[1733638386748,8.56459213,236.99,236.91,6.56459213]
[1733638386948,3.9939,237.04,236.93,6.56459213]
[1733638387253,3.9939,237.04,236.94,2.1086]
[1733638387254,6.56459213,237.0,236.94,2.1086]
[1733638387847,2.0,237.03,236.94,2.1086]
[1733638388045,6.56459213,237.0,236.94,2.1086]
[1733638388552,3.9939,237.04,236.96,2.1084]
[1733638388746,6.56459213,237.01,236.96,2.1084]
[1733638390544,2.1081,237.0,236.96,2.1084]
[1733638390748,3.9939,237.04,236.99,2.1081]
[1733638390957,1.3957,237.04,236.98,6.56459213]
[1733638391247,3.5034,237.04,236.98,6.56459213]
[1733638392048,6.56459213,237.03,236.96,6.56459213]
[1733638392248,8.67239213,237.03,236.98,2.1082]
[1733638393158,2.1078,237.03,236.98,8.67279213]
[1733638393349,2.1078,237.04,236.98,6.56459213]
[1733638393951,2.1078,237.04,237.0,2.1081]
[1733638395755,1.2621,237.13,236.98,6.56459213]
[1733638395960,1.2621,237.13,237.02,2.1078]
[1733638395961,2.1075,237.06,237.02,2.1078]
[1733638396955,7.82669213,237.13,237.04,6.56459213]
[1733638397155,7.82669213,237.13,237.06,6.56459213]
[1733638398455,2.1071,237.11,237.07,2.1074]
[1733638399861,2.107,237.12,237.08,2.1074]
[1733638400062,7.82669213,237.13,237.06,6.56459213]
[1733638400661,2.107,237.12,237.08,2.1074]
[1733638401566,2.1069,237.14,237.09,2.1072]
[1733638402159,88.70502061,237.15,237.08,6.56459213]
[1733638402360,1.2717,237.19,237.12,6.56459213]
[1733638403664,2.1065,237.18,237.14,2.1068]
[1733638403871,6.56459213,237.22,237.14,6.56459213]
[1733638404060,8.60459213,237.22,237.14,6.56459213]
[1733638404572,2.1063,237.21,237.16,2.1066]
[1733638405063,2.04,237.22,237.16,6.56459213]
[1733638405268,4.1461,237.22,237.16,6.56459213]
[1733638405667,8.60459213,237.22,237.14,6.56459213]
[1733638405871,2.1063,237.2,237.15,2.1067]
[1733638406175,2.1063,237.2,237.14,6.56459213]
[1733638407068,2.1063,237.2,237.16,6.56459213]
[1733638407270,10.71079213,237.22,237.16,6.56459213]
[1733638407470,6.56459213,237.22,237.16,6.56459213]
[1733638408672,2.1062,237.21,237.16,8.67119213]
[1733638409274,6.56459213,237.24,237.18,2.1065]
[1733638410575,2.1061,237.22,237.18,2.1065]
[1733638411775,2.1061,237.22,237.17,2.1066]
[1733638411971,6.56459213,237.2,237.12,2.04]
[1733638412371,2.04,237.25,237.12,2.04]
[1733638412372,6.56459213,237.18,237.12,2.04]
[1733638412570,2.04,237.25,237.13,2.1069]
[1733638412571,6.56459213,237.2,237.13,2.1069]
[1733638412967,2.1062,237.22,237.14,2.1068]
[1733638413171,2.04,237.25,237.14,6.56459213]
[1733638413172,6.56459213,237.21,237.14,6.56459213]
[1733638413573,2.1065,237.18,237.13,2.1068]
[1733638416377,2.1065,237.18,237.14,8.67139213]
[1733638417177,2.04,237.25,237.14,6.56459213]
[1733638417377,6.56459213,237.22,237.14,6.56459213]
[1733638418588,2.1063,237.2,237.16,2.1066]
[1733638418983,6.56459213,237.22,237.14,6.56459213]
[1733638419189,6.56459213,237.2,237.12,8.60459213]
[1733638419384,6.56459213,237.18,237.12,8.60459213]
[1733638419585,6.56459213,237.18,237.12,2.04]
[1733638420585,2.1067,237.16,237.12,4.1469]
[1733638423692,6.56459213,237.18,237.12,2.04]
[1733638423991,2.04,237.2,237.08,6.56459213]
[1733638423992,6.56459213,237.16,237.08,6.56459213]
[1733638424188,6.56459213,237.16,237.08,8.60459213]
[1733638424390,2.1069,237.13,237.08,10.71189213]
[1733638424588,2.1069,237.13,237.08,8.60459213]
[1733638425583,2.1069,237.13,237.09,2.1072]
[1733638429087,2.1071,237.12,237.03,1.2811]
[1733638429292,6.56459213,237.14,237.07,8.67199213]
[1733638429494,6.56459213,237.14,237.07,2.1074]
[1733638429999,6.56459213,237.14,237.05,8.67219213]
[1733638430203,6.56459213,237.14,237.05,6.56459213]
[1733638431195,2.1073,237.09,237.05,8.67219213]
[1733638432390,2.1072,237.1,237.06,2.1075]
[1733638432797,2.1071,237.12,237.09,6.56459213]
[1733638432997,6.56459213,237.17,237.09,6.56459213]
[1733638433389,2.1069,237.13,237.09,8.67189213]
[1733638433796,8.58459213,237.17,237.09,6.56459213]
[1733638433995,8.58459213,237.17,237.1,2.1072]
[1733638434699,2.1067,237.15,237.1,2.1072]
[1733638434894,2.1067,237.15,237.09,6.56459213]
[1733638435090,2.1067,237.15,237.11,2.1071]
[1733638435795,2.02,237.17,237.13,2.1069]
[1733638436000,6.56459213,237.19,237.13,2.1069]
[1733638437295,2.02,237.21,237.14,2.1068]
[1733638437596,6.56459213,237.22,237.14,2.1068]
[1733638437795,8.58459213,237.22,237.14,2.1068]
[1733638437998,2.1066,237.18,237.14,2.1068]
[1733638438199,6.56459213,237.2,237.14,2.1068]
[1733638438498,6.56459213,237.16,237.09,6.56459213]
[1733638438693,6.56459213,237.16,237.07,8.58459213]
[1733638439693,2.107,237.13,237.09,2.1073]
[1733638440899,2.107,237.12,237.09,2.1073]
[1733638442793,2.02,237.17,237.09,2.1073]
[1733638442998,2.02,237.17,237.1,2.1072]
[1733638443199,8.58459213,237.17,237.1,2.1072]
[1733638443899,2.1067,237.15,237.09,6.56459213]
[1733638444101,2.1067,237.15,237.11,2.1071]
[1733638444501,8.58459213,237.17,237.11,2.1071]
[1733638445804,2.1068,237.15,237.11,2.1071]
[1733638446708,2.1068,237.14,237.11,2.1071]
[1733638446908,2.1068,237.14,237.1,2.1072]
[1733638447901,2.1068,237.14,237.11,2.1071]
[1733638448201,2.1067,237.16,237.07,2.02]
[1733638448501,2.1067,237.16,237.11,6.56459213]
[1733638449105,2.1067,237.16,237.12,2.1069]
[1733638450107,6.56459213,237.23,237.15,6.56459213]
[1733638450607,6.56459213,237.23,237.16,2.1066]
[1733638451408,2.1064,237.2,237.16,2.1066]
[1733638452108,6.56459213,237.23,237.16,2.1066]
[1733638452410,2.1064,237.19,237.16,2.1066]
[1733638453200,6.56459213,237.23,237.19,2.1063]
[1733638453201,2.106,237.23,237.19,2.1063]
[1733638453403,2.106,237.23,237.19,8.67089213]
[1733638455413,2.6216,237.32,237.19,8.67089213]
[1733638455414,2.6216,237.32,237.19,6.56459213]
[1733638455715,2.6216,237.32,237.23,2.106]
[1733638455716,8.67029213,237.27,237.23,2.106]
[1733638456507,3.8898,237.32,237.23,6.56459213]
[1733638456711,9.81279213,237.32,237.23,6.56459213]
[1733638457013,7.83279213,237.32,237.23,6.56459213]
[1733638457213,6.56459213,237.32,237.23,6.56459213]
[1733638457515,6.56459213,237.32,237.25,6.56459213]
[1733638457912,6.56459213,237.32,237.25,8.54459213]
[1733638458111,1.2682,237.39,237.3,2.1054]
[1733638458318,6.56459213,237.35,237.3,2.1054]
[1733638459308,1.98,237.38,237.3,2.1054]
[1733638459510,6.56459213,237.35,237.3,2.1054]
[1733638459713,2.1051,237.34,237.29,2.1055]
[1733638460114,8.66969213,237.34,237.29,2.1055]
[1733638460419,6.56459213,237.34,237.27,6.56459213]
[1733638460613,2.1052,237.32,237.27,8.67019213]
[1733638461214,2.1052,237.32,237.15,1.3281]
[1733638461215,6.56459213,237.31,237.15,1.3281]
[1733638461518,6.56459213,237.29,237.21,6.56459213]
[1733638462620,2.1058,237.26,237.22,2.1061]
[1733638463921,2.1055,237.29,237.25,6.56459213]
[1733638464915,2.1053,237.31,237.27,2.1056]
[1733638466125,2.1052,237.32,237.27,2.1056]
[1733638467422,2.1054,237.3,237.25,6.56459213]
[1733638468721,2.1054,237.3,237.26,2.1058]
[1733638470327,2.1053,237.32,237.27,2.1056]
[1733638470529,6.56459213,237.33,237.27,2.1056]
[1733638471929,6.56459213,237.33,237.25,8.67039213]
[1733638472428,2.1055,237.3,237.25,6.56459213]
[1733638472629,8.54459213,237.35,237.27,6.56459213]
[1733638472824,2.1051,237.34,237.27,6.56459213]
[1733638473532,2.1051,237.34,237.29,6.56459213]
[1733638474625,2.1051,237.34,237.3,2.1054]
[1733638475330,8.54459213,237.35,237.28,2.1055]
[1733638475331,6.56459213,237.33,237.28,2.1055]
[1733638476227,2.1052,237.32,237.29,2.1055]
[1733638476631,8.54459213,237.35,237.29,2.1055]
[1733638477027,6.56459213,237.35,237.29,2.1055]
[1733638477632,2.1052,237.33,237.29,2.1055]
[1733638477932,6.56459213,237.35,237.29,2.1055]
[1733638478121,6.56459213,237.33,237.29,2.1055]
[1733638478725,6.56459213,237.35,237.29,2.1055]
[1733638479130,2.1051,237.34,237.3,2.1053]
[1733638479924,2.1051,237.34,237.29,6.56459213]
[1733638479925,2.1051,237.34,237.31,2.1053]
[1733638484635,8.54459213,237.37,237.29,6.56459213]
[1733638484636,2.1052,237.33,237.29,2.1055]
[1733638485027,2.1052,237.33,237.27,6.56459213]
[1733638485434,1.98,237.37,237.29,6.56459213]
[1733638485631,8.50459213,237.4,237.31,6.56459213]
[1733638485833,8.50459213,237.4,237.33,6.56459213]
[1733638486336,2.1045,237.4,237.36,2.1049]
[1733638486534,3.8586,237.48,237.35,6.56459213]